Cogmind - Beta 16.1 @@@ ROGUE MODE // 2026.04.28 @ 14:48:18 Player: kareds Result: Destroyed by X4-9TQ(R) with Subdweller Machine Gun Performance ------------- Evolutions (0) 0 Regions Visited (2) 400 Robots Destroyed (22) 110 Value Destroyed (498) 498 Prototype IDs (0) 0 Alien Tech Used (0) 0 Bonus (0) 0 TOTAL SCORE: 1008 Bonus ------- None Cogmind --------- Core Integrity 0/250 Matter 240/300 Energy 60/100 System Corruption 0% Temperature Cool (0) Movement Core (50) Location -10/Subcaves Parts ------- > --- POWER (1) -------- (None) > --- PROPULSION (2) --- Light Treads > --- UTILITY (2) ------ Machine Analyzer Targeting Computer > --- WEAPON (2) ------- (None) > --- INVENTORY (5) ---- Small Storage Unit Subdweller Optics Terrain Scanner Utility Shielding Peak State ------------ > --- POWER ------------ Subdweller Power Source > --- PROPULSION ------- Light Treads Light Treads > --- UTILITY ---------- Disposable Heat Sink Large Storage Unit > --- WEAPON ----------- Subdweller Beam Cannon Battle Rifle > --- INVENTORY -------- Light Ion Engine Light Ion Engine Light Treads Aluminum Leg Aluminum Leg Heat Sink Small Storage Unit Machine Analyzer Signal Interpreter Terrain Scanner Targeting Computer Utility Shielding Utility Shielding Utility Shielding EM Pulse Gun [Rating: 12] Favorites ----------- Power Light Ion Engine Engine Light Ion Engine Propulsion Light Treads Treads Light Treads Leg Aluminum Leg Utility Large Storage Unit Device Seismic Detector Storage Large Storage Unit Processor Signal Interpreter Weapon Subdweller Beam Cannon Energy Gun Subdweller Laser Energy Cannon Subdweller Beam Cannon Ballistic Gun Assault Rifle Build | -11 -10 -10 ------- Run | Yrd Mat Sub Slots Evolved . | . . . Power . | . . . Propulsion . | . . . Utility . | . . . Weapon . | . . . Parts Attached 24 | 7 2 15 Power 4 | 1 1 2 Engine 4 | 1 1 2 Core . | . . . Reactor . | . . . Propulsion 6 | 2 . 4 Treads 4 | 2 . 2 Leg 2 | . . 2 Wheel . | . . . Hover . | . . . Flight . | . . . Utility 7 | 2 1 4 Device 2 | 1 . 1 Storage 2 | 1 1 . Processor 3 | . . 3 Hackware . | . . . Protection . | . . . Artifact . | . . . Weapon 7 | 2 . 5 Energy Gun 4 | 1 . 3 Energy Cannon 1 | . . 1 Ballistic Gun 2 | 1 . 1 Ballistic Cannon . | . . . Launcher . | . . . Special Weapon . | . . . Impact Weapon . | . . . Slashing Weapon . | . . . Piercing Weapon . | . . . Special Melee Weapon . | . . . Unidentified Prototypes . | . . . Parts Lost 7 | . . 7 Power 1 | . . 1 Propulsion 2 | . . 2 Utility 1 | . . 1 Weapon 3 | . . 3 Highest Loss Streak 2 | . . 2 To Critical Strikes . | . . . Average Backups 12 | 2 9 14 Power . | . 1 . Propulsion 2 | 1 3 2 Utility 8 | . 4 10 Weapon . | . 1 . Tool/Special . | . . . Unused Backups 8 | . . 8 Power 1 | . . 1 Propulsion . | . . . Utility 7 | . . 7 Weapon . | . . . Tool/Special . | . . . Average Slot Usage (%) 97 | . 100 96 Engine 13 | . 14 13 Treads 27 | . 28 27 Device 4 | . 14 2 Storage 13 | . 14 13 Processor 8 | . . 10 Energy Gun 10 | . 14 10 Energy Cannon 9 | . . 11 Ballistic Gun 5 | . 14 3 Peak Build Rating 12 | 7 8 12 Average Rating 9 | 5 7 10 On Entrance 5 | . 7 8 Avg Prop Armor Cover (%) . | . . . Naked Turns . | . . . Heaviest Build 37 | 15 30 37 Greatest Support 40 | 40 40 40 Greatest Overweight (x) 1 | . . 1 Average Overweight (x) . | . . . Largest Inventory Capacity 15 | 8 15 15 Average Capacity 14 | 7 14 14 Most Carried 15 | 4 14 15 Average Carried 12 | 2 9 14 Final Capacity 15 | 8 15 5 Final Carried 14 | 4 14 4 Class Distribution -------------------- 56% | Mutant 43% | Scavenger-Mutant Dominant Class ---------------- Mutant | -10/Materials Scavenger-Mutant | -10/Subcaves Resources | -11 -10 -10 ----------- Run | Yrd Mat Sub Matter Collected 549 | 181 155 213 Remotely . | . . . Salvage Created 736 | 87 157 492 Parts 58 | 13 17 28 Haulers Intercepted 1 | . 1 . Recyclers Shooed . | . . . Parts Field Recycled . | . . . Retrieved Matter . | . . . Parts Self-Destructed 16 | . . 16 Prevented 2 | . . 2 Parts Restored . | . . . Kills | -11 -10 -10 ------- Run | Yrd Mat Sub Combat Hostiles Destroyed 15 | . 4 11 Guns 11 | . 4 7 Cannons 3 | . . 3 Classes Destroyed 6 | 1 3 2 Tunneler 4 | 4 . . Hauler 1 | . 1 . Turret 2 | . . 2 Swarmer 6 | . 2 4 Grunt 2 | . 2 . Subdweller 7 | . . 7 Best Kill Streak 4 | 3 4 3 Combat Bots Only 4 | . 4 2 Max Kills in Single Turn 2 | 1 2 1 Gunslinging 1 | . 1 . Exploded . | . . . Melee . | . . . Uniques/NPCs Destroyed . | . . . Combat | -11 -10 -10 -------- Run | Yrd Mat Sub Hostile Shots Fired 165 | . 28 137 Missed 58 | . 4 54 Hits 107 | . 24 83 Projectile 107 | . 24 83 Damage Taken 1392 | . 213 1179 Core 264 | . 50 214 Absorbed by Shields . | . . . Core Remaining (%) 100 | 100 . . Volleys Fired 81 | 6 12 63 Largest 2 | 2 2 2 Hottest 140 | 60 60 140 Shots Fired 149 | 12 24 113 Gun 119 | 12 24 83 Cannon 30 | . . 30 Launcher . | . . . Special . | . . . Kinetic 54 | 6 12 36 Thermal 49 | . . 49 Explosive . | . . . Electromagnetic 46 | 6 12 28 Robot Hit Streak 11 | 6 5 11 Robot Miss Streak 2 | 2 1 2 Penetration Max . | . . . Secondary Targets 2 | . 2 . Max Gunslinging Chain 1 | . 1 . Shots Hit Robots 74 | 7 13 54 Core Hits 34 | 4 8 22 Critical Kills 2 | 1 . 1 Critical Parts Destroyed . | . . . Critical Strikes 2 | 1 . 1 Meltdown 1 | . . 1 Destroy 1 | 1 . . Melee Attacks . | . . . Impact . | . . . Slashing . | . . . Piercing . | . . . Sneak Attacks . | . . . Combat Hostiles . | . . . Follow-up Attacks . | . . . Damage Inflicted 1133 | 100 166 867 Guns 825 | 100 163 562 Cannons 305 | . . 305 Explosions . | . . . Melee . | . . . Ramming 3 | . 3 . Kinetic 375 | 45 56 274 Thermal 380 | . . 380 Explosive . | . . . Electromagnetic 375 | 55 107 213 Impact . | . . . Slashing . | . . . Piercing . | . . . Highest Corruption . | . . . Average Corruption . | . . . Corruption Purged . | . . . Corruption Blocked . | . . . Overload Shots . | . . . Overflow Damage . | . . . Projectiles . | . . . Explosions . | . . . Melee . | . . . Knockbacks . | . . . Impact . | . . . Kinetic . | . . . Secondary . | . . . Self-Inflicted Damage . | . . . Shots . | . . . Rammed 1 | . 1 . Targets Rammed 1 | . 1 . Kicked . | . . . Crushed . | . . . Highest Temperature 126 | . 48 126 Average Temperature 38 | . 29 39 Received Heat Transfer 339 | . 48 291 Siege Activations . | . . . Martial Activations . | . . . Shielding Activations . | . . . Robots Disrupted . | . . . Combat Hostiles . | . . . Robots Corrupted . | . . . Combat Hostiles . | . . . Parts Fried 1 | . . 1 Impact Corruptions . | . . . Robots Melted 1 | . . 1 Combat Hostiles 1 | . . 1 Parts Melted 2 | . . 2 Heat Transferred 507 | . . 507 Parts Sabotaged . | . . . Parts Stolen . | . . . Parts Stripped . | . . . Power Chain Reactions . | . . . Alert | -11 -10 -10 ------- Run | Yrd Mat Sub Maximum Alert Level . | . . . Low Security (%) 100 | 100 100 . Level 1 . | . . . Level 2 . | . . . Level 3 . | . . . Level 4 . | . . . Level 5 . | . . . High Security . | . . . Max Security . | . . . Peak Influence 100 | 10 100 . Initial . | . . . Average 14 | . 19 . Influence Increases 838 | 20 113 705 Destroy 0b10 Robot/C 200 | . 80 120 Destroy 0b10 Robot/NC 25 | 20 5 . Destroy Leader 22 | . 22 . Successful Hack 6 | . 6 . Lose Combat Pursuer 585 | . . 585 Influence Decreases 785 | 20 69 696 Entered New Map 22 | . . 22 Time Decay 693 | 20 69 604 Lost Part 70 | . . 70 Squads Dispatched 1 | . 1 . Investigation 1 | . 1 . Extermination . | . . . Reinforcement . | . . . Assault . | . . . Garrison . | . . . Intercept . | . . . Searches Triggered . | . . . Construction Impeded . | . . . Haulers Reinforced . | . . . Active Scanning Responses . | . . . Cargo Convoy Interrupts . | . . . Stealth | -11 -10 -10 --------- Run | Yrd Mat Sub Distress Signals . | . . . Communications Jammed . | . . . Distress Signals . | . . . Times Spotted 42 | . 6 36 Peak Tracking Total 5 | . 5 2 Tactical Retreats 5 | . . 5 Traps | -11 -10 -10 ------- Run | Yrd Mat Sub Traps Triggered 1 | . . 1 Indirectly . | . . . Trap Hack Attempts . | . . . Triggered . | . . . Disarmed . | . . . Reprogrammed . | . . . Reused . | . . . Traps Extracted . | . . . Installed . | . . . Triggered . | . . . Machines | -11 -10 -10 ---------- Run | Yrd Mat Sub Machines Disabled 1 | . . 1 Max in Single Turn 1 | . . 1 Machines Repaired . | . . . Machines Dismantled . | . . . Machines Sabotaged . | . . . Overloaded Fab Kills . | . . . Hacking | -11 -10 -10 --------- Run | Yrd Mat Sub Machines Accessed 3 | . 3 . Terminals 3 | . 3 . Fabricators . | . . . Repair Stations . | . . . Recycling Units . | . . . Scanalyzers . | . . . Garrison Access . | . . . Total Hacks 12 | . 12 . Successful 2 | . 2 . Failed 10 | . 10 . Catastrophic . | . . . Database Lockouts . | . . . Manual 12 | . 12 . Terminals 12 | . 12 . Fabricators . | . . . Repair Stations . | . . . Recycling Units . | . . . Scanalyzers . | . . . Garrison Access . | . . . Terminal Hacks 1 | . 1 . Robot Analysis 1 | . 1 . Fabricator Hacks . | . . . Repair Station Hacks . | . . . Recycling Unit Hacks . | . . . Scanalyzer . | . . . Garrison Access Hacks . | . . . Unauthorized Hacks 1 | . 1 . Terminals 1 | . 1 . Operators 1 | . 1 . Fabricators . | . . . Repair Stations . | . . . Recycling Units . | . . . Scanalyzers . | . . . Garrison Access . | . . . Data Cores Recovered . | . . . Used . | . . . Hacking Detections 3 | . 3 . Full Trace Events 1 | . 1 . Feedback Events . | . . . Feedback Blocked . | . . . Robot Schematics Acquired . | . . . Robots Built . | . . . Authchips . | . . . Time . | . . . Total Robot Build Rating . | . . . Part Schematics Acquired . | . . . Parts Built . | . . . Authchips . | . . . Time . | . . . Total Part Build Rating . | . . . Part Studies Acquired . | . . . Parts Repaired . | . . . Time . | . . . Parts Recycled . | . . . Recycled Matter . | . . . Retrieved Matter . | . . . Retrieved Components . | . . . Parts Scanalyzed . | . . . Part Schematics Acquired . | . . . Parts Damaged . | . . . Bothacking | -11 -10 -10 ------------ Run | Yrd Mat Sub Used RIF Installer . | . . . Robots Hacked . | . . . Non-combat . | . . . Combat . | . . . Robot Hacks Applied . | . . . Relay Couplers Released . | . . . Fabnet Peak Effective % . | . . . Robots Rewired . | . . . Allies Hacked . | . . . Hacks Repelled . | . . . Allies | -11 -10 -10 -------- Run | Yrd Mat Sub Total Allies . | . . . Largest Group . | . . . Highest-Rated Group . | . . . Highest-Rated Ally . | . . . Total Orders . | . . . Ally Attacks . | . . . Total Damage . | . . . Kills . | . . . Allies Corrupted . | . . . Allies Melted . | . . . Intel | -11 -10 -10 ------- Run | Yrd Mat Sub Active Infowar (turns) 765 | 13 424 328 Seismic 759 | 13 424 322 Machine Analysis 6 | . . 6 Robot Analysis Total 1 | . 1 . Derelict Logs Recovered . | . . . Drone Launches . | . . . Drone Recoveries . | . . . Exploration | -11 -10 -10 ------------- Run | Yrd Mat Sub Turns Passed 2531 | 149 424 1958 Spaces Moved 1380 | 75 218 1087 Core 7 | 2 . 5 Treads 1363 | 73 218 1072 Legs 10 | . . 10 Wheels . | . . . Hover . | . . . Flight . | . . . Fastest Speed 50 | 50 160 50 Average Speed 159 | 157 160 159 Slowest Speed 240 | 160 160 240 Overloaded Moves . | . . . Propulsion Burnouts . | . . . Robots Hopped . | . . . Potential Cave-ins . | . . . Cave-ins Triggered . | . . . Exploration Rate (%) 25 | 4 29 42 Regions Visited 2 Branch Regions 1 Pre-discovered Areas . | . . . Known Exits Taken . | . . . Unknown Exits Taken 2 | 1 1 . Scrap Searched . | . . . Spaces Dug 17 | . . 17 Terrain Destroyed 19 | . . 19 Melee . | . . . Projectile 19 | . . 19 AOE . | . . . Terrain Rammed . | . . . Walls Destroyed . | . . . Machines Disabled . | . . . Actions | -11 -10 -10 --------- Run | Yrd Mat Sub Total 1545 | 91 268 1186 Wait 34 | . 25 9 Move 1378 | 74 217 1087 Hop . | . . . Pick Up 18 | 4 10 4 Fast Attach 12 | 7 1 4 Attach 5 | . . 5 Detach . | . . . Swap 10 | . 1 9 Drop 6 | . 1 5 Fire 81 | 6 12 63 Melee . | . . . Ram . | . . . Kick . | . . . Crush 1 | . 1 . Escape Stasis . | . . . Rewire . | . . . Trap . | . . . Miscellaneous . | . . . Route ------- -11/Scrapyard -10/Materials (discovered 2 exits: [*Mat] / [*Sub]) -10/Subcaves (discovered 3 exits: *Mat x2 / *Rec) History --------- Turn | Location | Event 32 | -11/Scrapyard | Discovered new exit (range 15) 150 | -11/Scrapyard | Entered Materials 302 | -10/Materials | Build established: Mutant 432 | -10/Materials | Discovered new exit (range 11) 558 | -10/Materials | Discovered new exit (range 8) 574 | -10/Materials | Entered Subcaves 575 | -10/Subcaves | Approached by a straggling Scientist 641 | -10/Subcaves | Discovered new exit (range 12) 714 | -10/Subcaves | Shifting Twisted Machinery released Riot Gun 721 | -10/Subcaves | Shifting Twisted Machinery released Battle Rifle 834 | -10/Subcaves | Core integrity fell below 50% 993 | -10/Subcaves | Discovered new exit (range 14) 1014 | -10/Subcaves | Identified exit to Materials 1103 | -10/Subcaves | Discovered exit to Materials (range 11) 1196 | -10/Subcaves | Build established: Scavenger-Mutant 1501 | -10/Subcaves | Identified exit to Recycling 1903 | -10/Subcaves | Ambushed by Subdweller buried in earth 1925 | -10/Subcaves | Ambushed by Subdweller buried in earth 2307 | -10/Subcaves | Build established: Mutant 2493 | -10/Subcaves | Ambushed by Subdwellers from Twisted Machinery 2519 | -10/Subcaves | Core integrity fell below 20% 2526 | -10/Subcaves | Released all parts (5) 2532 | -10/Subcaves | Destroyed by X4-9TQ(R) with Subdweller Machine Gun Last Messages --------------- Monowheel. 02182_ Triggered Piercing Trap. 02182_ Spikes shoot up from the floor. 02182_ Critical hit (Impale). 02182_ EM Pulse Gun destroyed. 02182_ Critical hit (Impale). 02331_ 82-IHT(u) builds Twisted Machinery. 02493_ PL-RIX(R) emerges from the Twisted Machinery. 02494_ Lgt. Treads destroyed. 02498_ Sub. Beam Cannon shoots sparks and powers down. 02502_ Lgt. Ion Engine destroyed. 02526_ Released Aluminum Leg. 02526_ Released Lrg. Storage Unit. 02526_ Released Broken Sub. Beam Cannon. 02526_ Released Signal Interpreter. 02526_ Released Aluminum Leg. 02526_ Acquired Machine Analyzer. 02528_ Acquired Targeting Computer. Map ----- +----------------------------------------------------+ | ????????????????????????????????????????????????? | | ????????????????????????????????????????????????? | | ????????????????????????????????????????????????? | | ????????????????????????????????????????????????? | | ????????????????????????????????????????????????? | | ????????????????????????#???????????????????????? | | ?????????????????????? # ??????????????????????? | | ?????????????????????? ??? ??????????????????? | | ??????????????#"?????? #?? ??????????????????? | | ??????????????# ?????? ## ##?????????????????? | | ?????????????? ?????# # ??????????????????? | | ?????????????? #???? # #??????????????????? | | ??????????????? #??## ??????????????????? | | ????##????????? #?# ???????????????????? | | ??? #?????????""" ?# ????????????????????? | | ?# #??????????"" ## ?????????????????????? | | #????# ??????# ??????????????????????? | | ##??? ??????# #??????????????????????? | | #??? #????????# ###????????????????????? | | #?? #??????### ######???????????????? | | #?? #??????# RR ## ##??????????????? | | ? #?? ##?????# !!! ##?????????????? | | ??? ##? ##???## *!=!= #?????????????? | | ??? ## #???# ## !####?????????????? | | ???? #???# ## ] #????????????????? | | ???? #?#### @ #????????????????? | | ????# #?## #????????????????? | | ?#### ?## ##????????????????? | | ## #?## ## ###?????????????????? | | # #??# #########???????????????????? | | # #### ##???????????????????????????? | | ## ###????????????????????????????? | | ##?????????????????????????????? | | ### ##### #?????????????????????????????? | | ######???# #????????????????????????????? | | #??????## ??????????????????????????? | | ##???????### ???????????????????????? | | #???????????# #??????????????????????? | | #????????????# ##??????????????????????? | | #######?????????????#####???????????????????????? | | ????????????????????????????????????????????????? | | ????????????????????????????????????????????????? | | ????????????????????????????????????????????????? | | ????????????????????????????????????????????????? | | ????????????????????????????????????????????????? | | ????????????????????????????????????????????????? | | ????????????????????????????????????????????????? | | ????????????????????????????????????????????????? | | ????????????????????????????????????????????????? | | ????????????????????????????????????????????????? | +----------------------------------------------------+ Best States ------------- Heat Dissipation 25 Coolant Potential 50 Energy Generation 15 Energy Capacity 250 Matter Stores 300 Matter Capacity 300 Sight Range 16 Terrain Scan Density 10 Evasion (%) 40 Targeting Accuracy 5 Recoil Reduction 2 Item Schematics ----------------- None Robot Schematics ------------------ None Fabricated ------------ Nothing Repaired ---------- Nothing Studied --------- None Alien Tech Used ----------------- None Achievements -------------- Do Not Disturb Challenges ------------ None Game ------ Seed SurveybotDecoyReactor Manual? 0 Play Time 00:18:42 Cumulative 24.2 hours Start 2026.04.28 @ 14:30:56 End 2026.04.28 @ 14:48:18 Sessions 1 Manual Loads 0 Difficulty Rogue Special Mode None Game No. 29 Rogue 13 Adventurer 16 Explorer 0 Win Type - Total 0 Types 0/0/0/0/0/0/0/0/0/0 Lore% 33 Gallery% 30 Achievement% 24 Wizard Run 0 Options --------- Layout 1 ASCII 0 Keyboard 0 Movement Mouse Keybinds 0 Fullscreen 1 Font 24/Smallcaps Map View 50x35 Zoom Use 0% Tactical HUD 1 Map Filters NONE Filters NONE Steam 1 RUN: ae1b76ed-7a6e-404b-8f61-7e35d71e75da